Department Family,Date Paid,Expense Type,Expense Area,Supplier,Transaction Number,Amount,Vat Inclusive
Crown Prosecution Service ,05/04/23,Right of use asset clearing Buildings,Balance Sheet,Government Property Agency London,00000001/24262,"1,082,439.34",
Crown Prosecution Service ,05/04/23,PPE asset purchase clearing Furniture and fittings,Balance Sheet,Government Property Agency London,00000001/24263,"210,230.29",
Crown Prosecution Service ,05/04/23,New Works: non capital,Estate and FM: Programme,Government Property Agency London,00000001/24264,"33,150.59",
Crown Prosecution Service ,05/04/23,Transcriptions and Translation,North East RASSO Unit,Mendip Media Group Ltd Tiverton,0000000207,"7,289.00",
Crown Prosecution Service ,05/04/23,Transcriptions and Translation,South West RASSO Unit Crown Court,Mendip Media Group Ltd Tiverton,0000000207,"14,199.00",
Crown Prosecution Service ,05/04/23,Recoverable VAT control,Balance Sheet,Mendip Media Group Ltd Tiverton,0000000207,"4,297.60",Y
Crown Prosecution Service ,05/04/23,Transcriptions and Translation,South West RASSO Unit Crown Court,Mendip Media Group Ltd Tiverton,0000000209,"17,679.00",
Crown Prosecution Service ,05/04/23,Transcriptions and Translation,North East RASSO Unit,Mendip Media Group Ltd Tiverton,0000000209,"6,129.00",
Crown Prosecution Service ,05/04/23,Recoverable VAT control,Balance Sheet,Mendip Media Group Ltd Tiverton,0000000209,"4,761.60",Y
Crown Prosecution Service ,05/04/23,Crown Court Graduated Fee Scheme,London North Crown Court Unit,Red Lion Chambers (18 RLC),161327RDZtrial,"46,369.80",Y
Crown Prosecution Service ,05/04/23,Crown Court Graduated Fee Scheme,SEOC Team 2,Red Lion Chambers (18 RLC),164853TKY,"26,408.64",Y
Crown Prosecution Service ,05/04/23,Crown Court Graduated Fee Scheme,South West Complex Casework Unit,Guildhall Chambers Bristol,191920MIW,"32,609.10",Y
Crown Prosecution Service ,05/04/23,Crown Court Graduated Fee Scheme,London North Complex Casework Unit,Seven Bedford Row,194979,"34,341.00",Y
Crown Prosecution Service ,05/04/23,Crown Court Graduated Fee Scheme,South West Complex Casework Unit,Guildhall Chambers Bristol,195527 JLT,"49,656.06",Y
Crown Prosecution Service ,05/04/23,Crown Court Graduated Fee Scheme,South West Complex Casework Unit,Guildhall Chambers Bristol,195527AV,"93,650.40",Y
Crown Prosecution Service ,05/04/23,Crown Court Very High Cost Cases Full Scheme,RWD North Unit,Foundry Chambers (9-12 Bell Yard),199260/JWA,"36,739.20",Y
Crown Prosecution Service ,05/04/23,Crown Court Graduated Fee Scheme,Thames and Chiltern Complex Casework Unit,36 Bedford Row,216402/JAB,"25,675.68",Y
Crown Prosecution Service ,05/04/23,External Training,Operational Change,Knowledge Academy Bracknell,444522,"25,415.00",
Crown Prosecution Service ,05/04/23,Recoverable VAT control,Balance Sheet,Knowledge Academy Bracknell,444522,"5,083.00",Y
Crown Prosecution Service ,05/04/23,Shared services,Other Corporate Admin Payments,HM Treasury,45480,"47,243.25",
Crown Prosecution Service ,05/04/23,Recoverable VAT control,Balance Sheet,HM Treasury,45480,"9,448.65",Y
Crown Prosecution Service ,05/04/23,Crown Court Graduated Fee Scheme,West Midlands British Transport Police,Farringdon Barristers Chambers,48229,"32,043.00",Y
Crown Prosecution Service ,05/04/23,General Professional Services,DTS Programme Project Cost,NTT Data UK Ltd London,5027534,"330,054.00",Y
Crown Prosecution Service ,05/04/23,General Professional Services,DTS Programme Project Cost,NTT Data UK Ltd London,5027535,"261,732.00",Y
Crown Prosecution Service ,05/04/23,General Professional Services,DTS Programme Project Cost,NTT Data UK Ltd London,5027549,"82,743.00",Y
Crown Prosecution Service ,05/04/23,External legal advice - Civil litigation,Other Corporate Programme Payments,Government Legal Department,521689,"95,070.76",Y
Crown Prosecution Service ,05/04/23,External legal advice - Civil litigation,Other Corporate Programme Payments,Government Legal Department,522772,"111,010.09",Y
Crown Prosecution Service ,05/04/23,Crown Court Very High Cost Cases Full Scheme,RWD North Unit,Exchange Chambers Leeds ,535033 - AHQC feb23,"28,589.22",Y
Crown Prosecution Service ,05/04/23,Crown Court Graduated Fee Scheme,North West Crown Court Hub,Exchange Chambers - Liverpool,597749 - RWJ CLAIM 4,"44,805.60",Y
Crown Prosecution Service ,05/04/23,Crown Court Graduated Fee Scheme,North West RASSO Unit,Exchange Chambers - Manchester,614777 AJO,"32,758.20",Y
Crown Prosecution Service ,05/04/23,Crown Court Graduated Fee Scheme,London North Crown Court Unit,15 New Bridge Street,680327-DMB,"31,204.80",Y
Crown Prosecution Service ,05/04/23,Apprenticeship Levy payments Permanent,Other Corporate Programme Payments,HM Revenue and Customs,948PB000021422312,"122,227.26",
Crown Prosecution Service ,05/04/23,Apprenticeship Levy payments Permanent,Other Corporate Admin Payments,HM Revenue and Customs,948PB000021422312,"7,801.74",
Crown Prosecution Service ,05/04/23,Crown Court Graduated Fee Scheme,Thames and Chiltern Complex Casework Unit,6 Kings Bench Walk- Chambers of D Fisher & D Perry,99702 DAT,"39,087.30",Y
Crown Prosecution Service ,05/04/23,UK National rail travel,DID Central Leadership Team,Clarity Travel Management,CPSHQ020423,473.80,
Crown Prosecution Service ,05/04/23,UK National rail travel,PF Resourcing,Clarity Travel Management,CPSHQ020423,259.00,
Crown Prosecution Service ,05/04/23,UK National rail travel,PF People and Business Change,Clarity Travel Management,CPSHQ020423,"2,282.00",
Crown Prosecution Service ,05/04/23,UK National rail travel,Central Legal Training Team,Clarity Travel Management,CPSHQ020423,824.40,
Crown Prosecution Service ,05/04/23,UK National rail travel,DID Security and Information,Clarity Travel Management,CPSHQ020423,"1,030.40",
Crown Prosecution Service ,05/04/23,UK National rail travel,Strategy and Policy,Clarity Travel Management,CPSHQ020423,937.30,
Crown Prosecution Service ,05/04/23,UK National rail travel,PF HR Business Partnering,Clarity Travel Management,CPSHQ020423,"1,155.90",
Crown Prosecution Service ,05/04/23,UK Hotels,PF HR Operations,Clarity Travel Management,CPSHQ020423,175.00,Y
Crown Prosecution Service ,05/04/23,UK National rail travel,DID DTS Change,Clarity Travel Management,CPSHQ020423,"2,214.30",
Crown Prosecution Service ,05/04/23,UK National rail travel,Chief Finance Officer,Clarity Travel Management,CPSHQ020423,959.40,
Crown Prosecution Service ,05/04/23,UK National rail travel,Director of Legal Services,Clarity Travel Management,CPSHQ020423,361.30,
Crown Prosecution Service ,05/04/23,UK National rail travel,PF Learning and Development General,Clarity Travel Management,CPSHQ020423,800.75,
Crown Prosecution Service ,05/04/23,UK National rail travel,Press Office,Clarity Travel Management,CPSHQ020423,71.30,
Crown Prosecution Service ,05/04/23,UK National rail travel,Corporate Communication,Clarity Travel Management,CPSHQ020423,936.00,
Crown Prosecution Service ,05/04/23,UK National rail travel,Operational Change,Clarity Travel Management,CPSHQ020423,"1,610.75",
Crown Prosecution Service ,05/04/23,UK National rail travel,PF HR Systems and Information,Clarity Travel Management,CPSHQ020423,77.40,
Crown Prosecution Service ,05/04/23,UK National rail travel,PF Analytics and Workforce Plan,Clarity Travel Management,CPSHQ020423,702.20,
Crown Prosecution Service ,05/04/23,UK National rail travel,Permanent Transfer Costs,Clarity Travel Management,CPSHQ020423,404.60,
Crown Prosecution Service ,05/04/23,UK National rail travel,Operational Performance,Clarity Travel Management,CPSHQ020423,727.50,
Crown Prosecution Service ,05/04/23,UK National rail travel,Operational Business Support,Clarity Travel Management,CPSHQ020423,138.80,
Crown Prosecution Service ,05/04/23,UK Air travel,DID Security and Information,Clarity Travel Management,CPSHQ020423,189.46,
Crown Prosecution Service ,05/04/23,UK National rail travel,PF HR Operations,Clarity Travel Management,CPSHQ020423,254.60,
Crown Prosecution Service ,05/04/23,UK National rail travel,DID DTS Technology,Clarity Travel Management,CPSHQ020423,832.80,
Crown Prosecution Service ,05/04/23,UK National rail travel,CFO Estates,Clarity Travel Management,CPSHQ020423,87.40,
Crown Prosecution Service ,05/04/23,UK National rail travel,CFO Commercial,Clarity Travel Management,CPSHQ020423,77.10,
Crown Prosecution Service ,05/04/23,UK National rail travel,DID Operational Process,Clarity Travel Management,CPSHQ020423,259.00,
Crown Prosecution Service ,05/04/23,UK National rail travel,Central Operational Training,Clarity Travel Management,CPSHQ020423,519.70,
Crown Prosecution Service ,05/04/23,UK National rail travel,Head of Communication,Clarity Travel Management,CPSHQ020423,166.00,
Crown Prosecution Service ,05/04/23,UK Hotels,Operational Change,Clarity Travel Management,CPSHQ020423,613.96,Y
Crown Prosecution Service ,05/04/23,UK Hotels,Strategy and Policy,Clarity Travel Management,CPSHQ020423,294.00,Y
Crown Prosecution Service ,05/04/23,UK Hotels,PF People and Business Change,Clarity Travel Management,CPSHQ020423,419.00,Y
Crown Prosecution Service ,05/04/23,UK Hotels,CFO Finance Operations,Clarity Travel Management,CPSHQ020423,133.00,Y
Crown Prosecution Service ,05/04/23,UK Hotels,Operational Performance,Clarity Travel Management,CPSHQ020423,430.10,Y
Crown Prosecution Service ,05/04/23,UK Hotels,DID DTS Technology,Clarity Travel Management,CPSHQ020423,581.86,Y
Crown Prosecution Service ,05/04/23,UK Hotels,DID DTS Change,Clarity Travel Management,CPSHQ020423,67.00,Y
Crown Prosecution Service ,05/04/23,UK Hotels,CFO Estates,Clarity Travel Management,CPSHQ020423,78.00,Y
Crown Prosecution Service ,05/04/23,UK Hotels,Private Office,Clarity Travel Management,CPSHQ020423,524.76,Y
Crown Prosecution Service ,05/04/23,UK Hotels,Permanent Transfer Costs,Clarity Travel Management,CPSHQ020423,247.00,Y
Crown Prosecution Service ,05/04/23,UK Hotels,Court Business Unit,Clarity Travel Management,CPSHQ020423,239.00,Y
Crown Prosecution Service ,05/04/23,UK Hotels,Operational Business Support,Clarity Travel Management,CPSHQ020423,"1,110.65",Y
Crown Prosecution Service ,05/04/23,UK Hotels,Central Legal Training Team,Clarity Travel Management,CPSHQ020423,"2,623.46",Y
Crown Prosecution Service ,05/04/23,UK Hotels,DID Operational Process,Clarity Travel Management,CPSHQ020423,83.00,Y
Crown Prosecution Service ,05/04/23,UK Hotels,Corporate Communication,Clarity Travel Management,CPSHQ020423,545.00,Y
Crown Prosecution Service ,05/04/23,UK National rail travel,Compliance and Assurance,Clarity Travel Management,CPSHQ260323,204.10,
Crown Prosecution Service ,05/04/23,UK National rail travel,CFO Commercial,Clarity Travel Management,CPSHQ260323,292.10,
Crown Prosecution Service ,05/04/23,UK National rail travel,PF Disability Staff Network,Clarity Travel Management,CPSHQ260323,138.50,
Crown Prosecution Service ,05/04/23,UK National rail travel,Operational Change,Clarity Travel Management,CPSHQ260323,"1,451.65",
Crown Prosecution Service ,05/04/23,UK National rail travel,CFO Finance Operations,Clarity Travel Management,CPSHQ260323,100.40,
Crown Prosecution Service ,05/04/23,UK Hotels,PF People and Business Change,Clarity Travel Management,CPSHQ260323,63.00,Y
Crown Prosecution Service ,05/04/23,UK National rail travel,Operational Performance,Clarity Travel Management,CPSHQ260323,"1,864.00",
Crown Prosecution Service ,05/04/23,UK National rail travel,DID DTS Technology,Clarity Travel Management,CPSHQ260323,"1,121.20",
Crown Prosecution Service ,05/04/23,UK National rail travel,Central Legal Training Team,Clarity Travel Management,CPSHQ260323,"1,542.60",
Crown Prosecution Service ,05/04/23,UK National rail travel,Strategy and Policy,Clarity Travel Management,CPSHQ260323,"1,806.10",
Crown Prosecution Service ,05/04/23,UK National rail travel,PF HR Systems and Information,Clarity Travel Management,CPSHQ260323,175.70,
Crown Prosecution Service ,05/04/23,UK National rail travel,Court Business Unit,Clarity Travel Management,CPSHQ260323,356.30,
Crown Prosecution Service ,05/04/23,UK Air travel,Private Office,Clarity Travel Management,CPSHQ260323,201.98,
Crown Prosecution Service ,05/04/23,UK National rail travel,CFO Fin System Change and Costings,Clarity Travel Management,CPSHQ260323,83.50,
Crown Prosecution Service ,05/04/23,UK National rail travel,CFO Estates,Clarity Travel Management,CPSHQ260323,58.40,
Crown Prosecution Service ,05/04/23,UK National rail travel,Corporate Communication,Clarity Travel Management,CPSHQ260323,"1,653.00",
Crown Prosecution Service ,05/04/23,UK National rail travel,PF People and Business Change,Clarity Travel Management,CPSHQ260323,"1,502.90",
Crown Prosecution Service ,05/04/23,UK National rail travel,Permanent Transfer Costs,Clarity Travel Management,CPSHQ260323,343.60,
Crown Prosecution Service ,05/04/23,UK National rail travel,PF Learning and Development General,Clarity Travel Management,CPSHQ260323,773.80,
Crown Prosecution Service ,05/04/23,UK National rail travel,DID DTS Change,Clarity Travel Management,CPSHQ260323,513.80,
Crown Prosecution Service ,05/04/23,UK National rail travel,Central Operational Training,Clarity Travel Management,CPSHQ260323,"1,129.20",
Crown Prosecution Service ,05/04/23,UK National rail travel,PF Resourcing,Clarity Travel Management,CPSHQ260323,19.70,
Crown Prosecution Service ,05/04/23,UK National rail travel,CFO Strategic Financial Planning,Clarity Travel Management,CPSHQ260323,647.70,
Crown Prosecution Service ,05/04/23,UK National rail travel,DID Security and Information,Clarity Travel Management,CPSHQ260323,"2,627.00",
Crown Prosecution Service ,05/04/23,UK National rail travel,Director of Legal Services,Clarity Travel Management,CPSHQ260323,"1,512.90",
Crown Prosecution Service ,05/04/23,UK National rail travel,DID Operational Process,Clarity Travel Management,CPSHQ260323,303.40,
Crown Prosecution Service ,05/04/23,UK National rail travel,DTUS,Clarity Travel Management,CPSHQ260323,185.80,
Crown Prosecution Service ,05/04/23,UK National rail travel,DID Central Leadership Team,Clarity Travel Management,CPSHQ260323,331.50,
Crown Prosecution Service ,05/04/23,UK National rail travel,Private Office,Clarity Travel Management,CPSHQ260323,"1,135.00",
Crown Prosecution Service ,05/04/23,UK National rail travel,PF HR Business Partnering,Clarity Travel Management,CPSHQ260323,485.45,
Crown Prosecution Service ,05/04/23,UK National rail travel,Operational Business Support,Clarity Travel Management,CPSHQ260323,"1,625.00",
Crown Prosecution Service ,05/04/23,UK Hotels,DID Security and Information,Clarity Travel Management,CPSHQ260323,134.99,Y
Crown Prosecution Service ,05/04/23,UK Hotels,DID Operational Process,Clarity Travel Management,CPSHQ260323,150.00,Y
Crown Prosecution Service ,05/04/23,UK Hotels,DID DTS Change,Clarity Travel Management,CPSHQ260323,419.25,Y
Crown Prosecution Service ,05/04/23,UK Hotels,Central Legal Training Team,Clarity Travel Management,CPSHQ260323,504.64,Y
Crown Prosecution Service ,05/04/23,UK Hotels,Operational Change,Clarity Travel Management,CPSHQ260323,279.30,Y
Crown Prosecution Service ,05/04/23,UK Hotels,Press Office,Clarity Travel Management,CPSHQ260323,130.86,Y
Crown Prosecution Service ,05/04/23,UK Hotels,Corporate Communication,Clarity Travel Management,CPSHQ260323,205.75,Y
Crown Prosecution Service ,05/04/23,UK Hotels,Permanent Transfer Costs,Clarity Travel Management,CPSHQ260323,553.78,Y
Crown Prosecution Service ,05/04/23,UK Hotels,PF Learning and Development General,Clarity Travel Management,CPSHQ260323,916.29,Y
Crown Prosecution Service ,05/04/23,UK Hotels,Strategy and Policy,Clarity Travel Management,CPSHQ260323,398.76,Y
Crown Prosecution Service ,05/04/23,UK Hotels,PF MAER and Employee Relations,Clarity Travel Management,CPSHQ260323,368.50,Y
Crown Prosecution Service ,05/04/23,UK Hotels,Private Office,Clarity Travel Management,CPSHQ260323,190.00,Y
Crown Prosecution Service ,05/04/23,UK Hotels,Director of Legal Services,Clarity Travel Management,CPSHQ260323,429.00,Y
Crown Prosecution Service ,05/04/23,UK Hotels,CFO Commercial,Clarity Travel Management,CPSHQ260323,555.00,Y
Crown Prosecution Service ,05/04/23,UK Hotels,DID Central Leadership Team,Clarity Travel Management,CPSHQ260323,83.99,Y
Crown Prosecution Service ,05/04/23,Crown Court Graduated Fee Scheme,London South Complex Casework Unit,5 King's Bench Walk,DRKC177121,"25,769.40",Y
Crown Prosecution Service ,05/04/23,IT services,Service Desk Contract,CGI IT UK Ltd,GB014101231,"96,389.85",
Crown Prosecution Service ,05/04/23,Recoverable VAT control,Balance Sheet,CGI IT UK Ltd,GB014101231,"19,277.97",Y
Crown Prosecution Service ,05/04/23,Intangibles asset purchase clearing CMS,DTS ICT Capital Expenditure,CGI IT UK Ltd,GB014101275,"566,834.74",
Crown Prosecution Service ,05/04/23,Recoverable VAT control,Balance Sheet,CGI IT UK Ltd,GB014101275,"113,366.95",Y
Crown Prosecution Service ,05/04/23,Intangibles asset purchase clearing CMS,DTS ICT Capital Expenditure,CGI IT UK Ltd,GB014101424,"499,521.90",
Crown Prosecution Service ,05/04/23,Recoverable VAT control,Balance Sheet,CGI IT UK Ltd,GB014101424,"99,904.38",Y
Crown Prosecution Service ,05/04/23,Intangibles asset purchase clearing CMS,DTS ICT Capital Expenditure,CGI IT UK Ltd,GB014101433,"324,326.33",
Crown Prosecution Service ,05/04/23,Recoverable VAT control,Balance Sheet,CGI IT UK Ltd,GB014101433,"64,865.27",Y
Crown Prosecution Service ,05/04/23,Intangibles asset purchase clearing CMS,DTS ICT Capital Expenditure,CGI IT UK Ltd,GB014101434,"259,938.11",
Crown Prosecution Service ,05/04/23,Recoverable VAT control,Balance Sheet,CGI IT UK Ltd,GB014101434,"51,987.62",Y
Crown Prosecution Service ,05/04/23,IT services,DTS Programme Project Cost,CGI IT UK Ltd,GB014102168,"178,159.08",Y
Crown Prosecution Service ,05/04/23,Crown Court Graduated Fee Scheme,North West Complex Casework Unit,9 St John Street (Nine),JH 420005,"30,920.34",Y
Crown Prosecution Service ,05/04/23,Crown Court Graduated Fee Scheme,East Midlands Complex Casework Unit,2 Harcourt Buildings,SME-115979,"32,260.20",Y
Crown Prosecution Service ,05/04/23,Other managed/contractor services,PF People and Business Change,Thrive Therapeutic Software Ltd Stratford,THR-2128,"2,562.32",Y
Crown Prosecution Service ,05/04/23,Other managed/contractor services,PF Operational HR Costs,Thrive Therapeutic Software Ltd Stratford,THR-2128,"23,061.00",Y
Crown Prosecution Service ,05/04/23,Crown Court Graduated Fee Scheme,Yorks and Humbs CC Legal,St Johns Buildings - 24a - 28 St John Street,1186689,"25,251.60",Y
Crown Prosecution Service ,06/04/23,Crown Court Graduated Fee Scheme,East Midlands Crown Court Section,Castle Gate Chambers,274053/1 LP ,"36,108.00",Y
Crown Prosecution Service ,06/04/23,Crown Court Graduated Fee Scheme,Yorks and Humbs CC Legal,New Park Court Chambers Leeds,361110-4/AE,"26,663.40",Y
Crown Prosecution Service ,06/04/23,Crown Court Graduated Fee Scheme,North West Complex Casework Unit,New Park Court Chambers Leeds,366223-2/JPKC,"43,586.94",Y
Crown Prosecution Service ,06/04/23,Crown Court Graduated Fee Scheme,East Midlands Crown Court Section,No 5 Fountain Court Chambers,811782/JH//2,"72,219.00",Y
Crown Prosecution Service ,06/04/23,General Professional Services,IAP Conference,Bray Leino Ltd Devon,SI0037876BLE,"34,905.60",Y
Crown Prosecution Service ,11/04/23,Crown Court Graduated Fee Scheme,London North Complex Casework Unit,6 Kings Bench Walk- Chambers of D Fisher & D Perry,102745,"55,473.60",Y
Crown Prosecution Service ,11/04/23,Crown Court Graduated Fee Scheme,South East Complex Casework Unit,6 Pump Court The Chambers of Mr Stephen Hockman,162855/DAM,"48,971.45",Y
Crown Prosecution Service ,11/04/23,Crown Court Graduated Fee Scheme,South East Complex Casework Unit,23 Essex Street Chambers,199645-JAP,"100,792.81",Y
Crown Prosecution Service ,11/04/23,Crown Court Graduated Fee Scheme,East Midlands Complex Casework Unit,36 Bedford Row,220978/NJM-3.1 TRIAL,"25,923.00",Y
Crown Prosecution Service ,11/04/23,Crown Court Graduated Fee Scheme,London North Complex Casework Unit,5 King's Bench Walk,AOKC175663.Trial,"110,957.40",Y
Crown Prosecution Service ,11/04/23,Crown Court Very High Cost Cases Full Scheme,SEOC Team 2,5 King's Bench Walk,CNKC168887.Mar23,"25,636.00",Y
Crown Prosecution Service ,11/04/23,IT non capital software licences,Legal Reference and ICT Licenses,Softcat Plc Marlow,INVUK809159,"370,112.40",Y
Crown Prosecution Service ,11/04/23,Crown Court Graduated Fee Scheme,London North Complex Casework Unit,QEB Hollis Whiteman Chambers,JE / PRA 112413,"28,465.20",Y
Crown Prosecution Service ,12/04/23,Other Expert Fees,Mersey Cheshire Complex Casework Unit,Evans Dewi Swansea,1551,"25,920.00",Y
Crown Prosecution Service ,12/04/23,Crown Court Graduated Fee Scheme,London South Complex Casework Unit,5 King's Bench Walk,CF177515,"39,671.28",Y
Crown Prosecution Service ,12/04/23,Crown Court Graduated Fee Scheme,London South Complex Casework Unit,5 King's Bench Walk,CHO177515,"30,797.76",Y
Crown Prosecution Service ,12/04/23,Other Expert Fees,Mersey Cheshire Complex Casework Unit,Bohin Sandie Guernsey,LETBY200323,"32,880.00",
Crown Prosecution Service ,13/04/23,National non domestic rates,Estate and FM: Programme,Government Property Agency London,00000001/24410a,"45,964.09",
Crown Prosecution Service ,13/04/23,National non domestic rates,Estate and FM: Programme,Government Property Agency London,00000001/24412a,"70,696.03",
Crown Prosecution Service ,13/04/23,Landlord service charge,Estate and FM: Programme,Government Property Agency London,00000001/24417a,"53,908.99",
Crown Prosecution Service ,13/04/23,National non domestic rates,Estate and FM: Programme,Government Property Agency London,00000001/24418a,"168,388.87",
Crown Prosecution Service ,13/04/23,Landlord service charge,Estate and FM: Programme,Government Property Agency London,00000001/24429a,"110,939.74",
Crown Prosecution Service ,13/04/23,Landlord service charge,Estate and FM: Programme,Government Property Agency London,00000001/24437a,"40,440.36",
Crown Prosecution Service ,13/04/23,Landlord service charge,Estate and FM: Programme,Government Property Agency London,00000001/24452a,"64,108.73",
Crown Prosecution Service ,13/04/23,National non domestic rates,Estate and FM: Programme,Government Property Agency London,00000001/24453a,"99,069.56",
Crown Prosecution Service ,13/04/23,Advice/PreSending Very High Cost Cases Full Scheme,RWD North Unit,St Pauls Chambers Leeds,140408 inc38 HWA,"25,080.00",Y
Crown Prosecution Service ,13/04/23,Crown Court Graduated Fee Scheme,East of England Crown Court,Red Lion Chambers (18 RLC),164766LJT,"29,208.24",Y
Crown Prosecution Service ,13/04/23,Crown Court Graduated Fee Scheme,East of England Crown Court,Red Lion Chambers (18 RLC),164766RKJ,"57,886.68",Y
Crown Prosecution Service ,13/04/23,Crown Court Very High Cost Cases Full Scheme,East Midlands Complex Casework Unit,36 Bedford Row,215623-JEC-Stage 3,"55,110.66",Y
Crown Prosecution Service ,13/04/23,UK Hotels,Permanent Transfer Costs,Clarity Travel Management,CPSHQ090423,102.00,Y
Crown Prosecution Service ,13/04/23,Overseas Hotels,Private Office,Clarity Travel Management,CPSHQ090423,266.96,Y
Crown Prosecution Service ,13/04/23,UK Hotels,CFO Finance Operations,Clarity Travel Management,CPSHQ090423,151.00,Y
Crown Prosecution Service ,13/04/23,UK Hotels,Central Operational Training,Clarity Travel Management,CPSHQ090423,205.38,Y
Crown Prosecution Service ,13/04/23,UK Hotels,Central Legal Training Team,Clarity Travel Management,CPSHQ090423,"1,642.58",Y
Crown Prosecution Service ,13/04/23,UK Hotels,Corporate Communication,Clarity Travel Management,CPSHQ090423,584.00,Y
Crown Prosecution Service ,13/04/23,UK Hotels,DID DTS Change,Clarity Travel Management,CPSHQ090423,532.05,Y
Crown Prosecution Service ,13/04/23,UK Hotels,PF People and Business Change,Clarity Travel Management,CPSHQ090423,399.79,Y
Crown Prosecution Service ,13/04/23,UK Hotels,DID DTS Technology,Clarity Travel Management,CPSHQ090423,872.66,Y
Crown Prosecution Service ,13/04/23,UK Hotels,DTUS,Clarity Travel Management,CPSHQ090423,144.00,Y
Crown Prosecution Service ,13/04/23,UK Hotels,PF Learning and Development General,Clarity Travel Management,CPSHQ090423,712.83,Y
Crown Prosecution Service ,13/04/23,UK Hotels,Strategy and Policy,Clarity Travel Management,CPSHQ090423,"1,517.81",Y
Crown Prosecution Service ,13/04/23,UK Hotels,Operational Change,Clarity Travel Management,CPSHQ090423,628.17,Y
Crown Prosecution Service ,13/04/23,UK Hotels,Director of Legal Services,Clarity Travel Management,CPSHQ090423,314.50,Y
Crown Prosecution Service ,13/04/23,UK Hotels,PF HR Systems and Information,Clarity Travel Management,CPSHQ090423,65.00,Y
Crown Prosecution Service ,13/04/23,UK Hotels,Chief Finance Officer,Clarity Travel Management,CPSHQ090423,112.00,Y
Crown Prosecution Service ,13/04/23,UK Hotels,Private Office,Clarity Travel Management,CPSHQ090423,408.60,Y
Crown Prosecution Service ,13/04/23,UK National rail travel,DID Operational Process,Clarity Travel Management,CPSHQ090423,750.30,
Crown Prosecution Service ,13/04/23,UK National rail travel,CFO Finance Operations,Clarity Travel Management,CPSHQ090423,275.00,
Crown Prosecution Service ,13/04/23,UK National rail travel,DID DTS Technology,Clarity Travel Management,CPSHQ090423,673.90,
Crown Prosecution Service ,13/04/23,UK National rail travel,DID DTS Change,Clarity Travel Management,CPSHQ090423,832.10,
Crown Prosecution Service ,13/04/23,Overseas Air travel,Private Office,Clarity Travel Management,CPSHQ090423,"1,099.84",
Crown Prosecution Service ,13/04/23,UK National rail travel,DID Central Leadership Team,Clarity Travel Management,CPSHQ090423,"1,430.40",
Crown Prosecution Service ,13/04/23,UK National rail travel,Chief Finance Officer,Clarity Travel Management,CPSHQ090423,18.10,
Crown Prosecution Service ,13/04/23,UK National rail travel,Corporate Communication,Clarity Travel Management,CPSHQ090423,"2,095.00",
Crown Prosecution Service ,13/04/23,UK National rail travel,PF Analytics and Workforce Plan,Clarity Travel Management,CPSHQ090423,893.60,
Crown Prosecution Service ,13/04/23,UK National rail travel,Compliance and Assurance,Clarity Travel Management,CPSHQ090423,"1,804.40",
Crown Prosecution Service ,13/04/23,UK National rail travel,DID Security and Information,Clarity Travel Management,CPSHQ090423,"2,118.80",
Crown Prosecution Service ,13/04/23,UK National rail travel,Operational Business Support,Clarity Travel Management,CPSHQ090423,77.05,
Crown Prosecution Service ,13/04/23,UK National rail travel,Permanent Transfer Costs,Clarity Travel Management,CPSHQ090423,541.30,
Crown Prosecution Service ,13/04/23,UK National rail travel,PF Resourcing,Clarity Travel Management,CPSHQ090423,776.60,
Crown Prosecution Service ,13/04/23,UK National rail travel,PF Learning and Development General,Clarity Travel Management,CPSHQ090423,735.00,
Crown Prosecution Service ,13/04/23,UK National rail travel,PF HR Systems and Information,Clarity Travel Management,CPSHQ090423,72.00,
Crown Prosecution Service ,13/04/23,UK National rail travel,PF HR Operations,Clarity Travel Management,CPSHQ090423,903.40,
Crown Prosecution Service ,13/04/23,UK National rail travel,PF People and Business Change,Clarity Travel Management,CPSHQ090423,983.80,
Crown Prosecution Service ,13/04/23,UK National rail travel,Operational Change,Clarity Travel Management,CPSHQ090423,787.50,
Crown Prosecution Service ,13/04/23,UK National rail travel,PF HR Business Partnering,Clarity Travel Management,CPSHQ090423,0.80,
Crown Prosecution Service ,13/04/23,UK National rail travel,Central Legal Training Team,Clarity Travel Management,CPSHQ090423,114.50,
Crown Prosecution Service ,13/04/23,UK National rail travel,CFO Estates,Clarity Travel Management,CPSHQ090423,441.80,
Crown Prosecution Service ,13/04/23,UK National rail travel,Private Office,Clarity Travel Management,CPSHQ090423,103.10,
Crown Prosecution Service ,13/04/23,UK National rail travel,Operational Performance,Clarity Travel Management,CPSHQ090423,241.50,
Crown Prosecution Service ,13/04/23,UK National rail travel,Central Operational Training,Clarity Travel Management,CPSHQ090423,"1,117.55",
Crown Prosecution Service ,13/04/23,UK National rail travel,Strategy and Policy,Clarity Travel Management,CPSHQ090423,685.10,
Crown Prosecution Service ,13/04/23,Crown Court Graduated Fee Scheme,East Midlands Crown Court Section,4 Breams Buildings,NL/OC 326793 12/4,"34,414.44",Y
Crown Prosecution Service ,13/04/23,Crown Court Graduated Fee Scheme,East of England Crown Court,4 Breams Buildings,STKC 323311 12/4,"41,656.74",Y
Crown Prosecution Service ,14/04/23,Other managed/contractor services,PF People and Business Change,People Asset Management Limited Warrington,0000127302,"6,300.00",Y
Crown Prosecution Service ,14/04/23,Other managed/contractor services,PF Operational HR Costs,People Asset Management Limited Warrington,0000127302,"56,700.00",Y
Crown Prosecution Service ,14/04/23,Crown Court Graduated Fee Scheme,East Midlands Crown Court Section,Bank House Chambers,192715 KLG,"33,427.20",Y
Crown Prosecution Service ,14/04/23,Crown Court Graduated Fee Scheme,Thames and Chiltern RASSO Unit,Broadway House Chambers,296888-TKKC,"25,072.68",Y
Crown Prosecution Service ,14/04/23,IT services,DTS Programme Project Cost,Accenture (UK) Ltd London,3003602278,"87,700.50",Y
Crown Prosecution Service ,14/04/23,IT services,Other IT costs,Lumen Technologies UK Ltd,636012802/1136203,"51,727.82",Y
Crown Prosecution Service ,14/04/23,Crown Court Graduated Fee Scheme,Special Crime Unit London,2 Bedford Row Chambers,CA 206013,"37,613.21",
Crown Prosecution Service ,14/04/23,Recoverable VAT control,Balance Sheet,CGI IT UK Ltd,GB014102613,"25,755.12",Y
Crown Prosecution Service ,14/04/23,Intangibles asset purchase clearing CMS,DTS ICT Capital Expenditure,CGI IT UK Ltd,GB014102613,"128,775.58",
Crown Prosecution Service ,14/04/23,Recoverable VAT control,Balance Sheet,CGI IT UK Ltd,GB014102825,"4,226.37",Y
Crown Prosecution Service ,14/04/23,IT services,Apps and Hosting Contract,CGI IT UK Ltd,GB014102825,"21,131.85",
Crown Prosecution Service ,14/04/23,Recoverable VAT control,Balance Sheet,CGI IT UK Ltd,GB014102826,"4,318.48",Y
Crown Prosecution Service ,14/04/23,IT services,Apps and Hosting Contract,CGI IT UK Ltd,GB014102826,"21,592.42",
Crown Prosecution Service ,14/04/23,Recoverable VAT control,Balance Sheet,CGI IT UK Ltd,GB014103215,"213,552.56",Y
Crown Prosecution Service ,14/04/23,IT services,Apps and Hosting Contract,CGI IT UK Ltd,GB014103215,"1,067,762.81",
Crown Prosecution Service ,14/04/23,IT services,DTS Programme Project Cost,Green Lemon Company Ltd Haywards Heath,GLC_Invoice_2023-03_464,"36,000.00",Y
Crown Prosecution Service ,14/04/23,IT services,DTS Programme Project Cost,Green Lemon Company Ltd Haywards Heath,GLC_Invoice_2023-03_465,"42,000.00",Y
Crown Prosecution Service ,14/04/23,IT services,DTS Programme Project Cost,FlyForm LTD Cardiff,INV-11310,"34,045.92",Y
Crown Prosecution Service ,14/04/23,IT services,DTS Programme Project Cost,FlyForm LTD Cardiff,INV-11332,"24,395.99",
Crown Prosecution Service ,14/04/23,Recoverable VAT control,Balance Sheet,FlyForm LTD Cardiff,INV-11332,"4,879.21",Y
Crown Prosecution Service ,14/04/23,IT services,DTS Programme Project Cost,eSynergy Solutions Ltd,INV00001128,"36,570.00",Y
Crown Prosecution Service ,14/04/23,IT services,DTS Programme Project Cost,eSynergy Solutions Ltd,INV00001129,"168,307.92",Y
Crown Prosecution Service ,14/04/23,IT services,DTS Programme Project Cost,eSynergy Solutions Ltd,INV00001130,"27,720.00",Y
Crown Prosecution Service ,14/04/23,IT services,DTS Programme Project Cost,eSynergy Solutions Ltd,INV00001157,"92,397.72",Y
Crown Prosecution Service ,17/04/23,Advice/PreSending Very High Cost Cases Full Scheme,Mersey Cheshire Complex Casework Unit,Harrington Street Chambers,1096572/NJS39,"36,829.12",
Crown Prosecution Service ,17/04/23,Crown Court Graduated Fee Scheme,Yorks and Humbs CC Legal,Kings Bench Walk Leeds,123562/NCKC,"40,219.44",Y
Crown Prosecution Service ,17/04/23,Recoverable VAT control,Balance Sheet,Trustmarque Solutions Ltd,2361215,"8,760.89",Y
Crown Prosecution Service ,17/04/23,IT non capital software licences,Legal Reference and ICT Licenses,Trustmarque Solutions Ltd,2361215,"43,804.44",
Crown Prosecution Service ,17/04/23,PPE asset purchase clearing Furniture and fittings,Balance Sheet,Senator International Ltd Lancashire,R00097048,"32,563.20",Y
Crown Prosecution Service ,17/04/23,PPE asset purchase clearing Furniture and fittings,Balance Sheet,Senator International Ltd Lancashire,S01798932,"41,725.20",Y
Crown Prosecution Service ,17/04/23,Crown Court Graduated Fee Scheme,Yorkshire and Humberside Complex Casework Unit,New Park Court Chambers Leeds,SBKC/368412,"88,860.60",Y
Crown Prosecution Service ,18/04/23,Crown Court Graduated Fee Scheme,Yorks and Humbs CC Legal,St Pauls Chambers Leeds,168252,"33,663.00",Y
Crown Prosecution Service ,18/04/23,Recoverable VAT control,Balance Sheet,Xerox (UK) Ltd,900227221,"4,370.00",Y
Crown Prosecution Service ,18/04/23,Short term leases from 2 to 12 months: IT and Equipment,Print Contract,Xerox (UK) Ltd,900227221,"21,850.00",
Crown Prosecution Service ,18/04/23,General Professional Services,Strategy and Policy,Equally Ours London,EO1440,"50,272.00",
Crown Prosecution Service ,19/04/23,Crown Court Graduated Fee Scheme,East Midlands Complex Casework Unit,36 Bedford Row,215696/HJA,"49,872.08",Y
Crown Prosecution Service ,19/04/23,Crown Court Graduated Fee Scheme,East Midlands Complex Casework Unit,36 Bedford Row,215696/SWA,"31,841.34",Y
Crown Prosecution Service ,19/04/23,Crown Court Graduated Fee Scheme,London North Crown Court Unit,2 Harcourt Buildings,PCS/117232,"28,957.80",Y
Crown Prosecution Service ,19/04/23,Other managed/contractor services,PF People and Business Change,Thrive Therapeutic Software Ltd Stratford,THR-2129,"6,097.40",Y
Crown Prosecution Service ,19/04/23,Other managed/contractor services,PF Operational HR Costs,Thrive Therapeutic Software Ltd Stratford,THR-2129,"54,876.60",Y
Crown Prosecution Service ,20/04/23,Provisions Charge to DEL on utilisation Dilapidations,Estate and FM: Programme,Government Property Agency London,00000001/25277,"87,146.59",
Crown Prosecution Service ,20/04/23,Crown Court Graduated Fee Scheme,Yorkshire and Humberside Complex Casework Unit,Park Square Barristers (No 6 and Sovereign merged),494908/GG/A/TRL1,"32,455.80",Y
Crown Prosecution Service ,20/04/23,UK Hotels,Press Office,Clarity Travel Management,CPSHQ160423,93.00,Y
Crown Prosecution Service ,20/04/23,UK National rail travel,Operational Change,Clarity Travel Management,CPSHQ160423,704.25,
Crown Prosecution Service ,20/04/23,Overseas Hotels,Private Office,Clarity Travel Management,CPSHQ160423,943.44,Y
Crown Prosecution Service ,20/04/23,UK Hotels,Permanent Transfer Costs,Clarity Travel Management,CPSHQ160423,470.32,Y
Crown Prosecution Service ,20/04/23,UK Hotels,PF Resourcing,Clarity Travel Management,CPSHQ160423,191.10,Y
Crown Prosecution Service ,20/04/23,UK Hotels,Operational Business Support,Clarity Travel Management,CPSHQ160423,513.01,Y
Crown Prosecution Service ,20/04/23,UK Hotels,Operational Change,Clarity Travel Management,CPSHQ160423,372.61,Y
Crown Prosecution Service ,20/04/23,UK Hotels,DID DTS Change,Clarity Travel Management,CPSHQ160423,868.84,Y
Crown Prosecution Service ,20/04/23,UK Hotels,PF HR Operations,Clarity Travel Management,CPSHQ160423,333.14,Y
Crown Prosecution Service ,20/04/23,UK Hotels,PF Learning and Development General,Clarity Travel Management,CPSHQ160423,335.00,Y
Crown Prosecution Service ,20/04/23,UK Hotels,DID Operational Process,Clarity Travel Management,CPSHQ160423,315.91,Y
Crown Prosecution Service ,20/04/23,UK Hotels,Central Legal Training Team,Clarity Travel Management,CPSHQ160423,"1,282.03",Y
Crown Prosecution Service ,20/04/23,UK Hotels,Corporate Communication,Clarity Travel Management,CPSHQ160423,206.50,Y
Crown Prosecution Service ,20/04/23,UK Hotels,PF HR Business Management,Clarity Travel Management,CPSHQ160423,139.85,Y
Crown Prosecution Service ,20/04/23,UK Hotels,DTUS,Clarity Travel Management,CPSHQ160423,142.00,Y
Crown Prosecution Service ,20/04/23,UK Hotels,PF HR Business Partnering,Clarity Travel Management,CPSHQ160423,86.01,Y
Crown Prosecution Service ,20/04/23,UK National rail travel,Operational Performance,Clarity Travel Management,CPSHQ160423,"1,301.60",
Crown Prosecution Service ,20/04/23,UK National rail travel,PF Learning and Development General,Clarity Travel Management,CPSHQ160423,976.30,
Crown Prosecution Service ,20/04/23,UK National rail travel,Strategy and Policy,Clarity Travel Management,CPSHQ160423,"1,405.15",
Crown Prosecution Service ,20/04/23,UK National rail travel,DID Operational Process,Clarity Travel Management,CPSHQ160423,546.80,
Crown Prosecution Service ,20/04/23,UK National rail travel,Central Legal Training Team,Clarity Travel Management,CPSHQ160423,"1,928.30",
Crown Prosecution Service ,20/04/23,UK National rail travel,Operational Business Support,Clarity Travel Management,CPSHQ160423,279.50,
Crown Prosecution Service ,20/04/23,UK National rail travel,Corporate Communication,Clarity Travel Management,CPSHQ160423,938.90,
Crown Prosecution Service ,20/04/23,UK National rail travel,PF People and Business Change,Clarity Travel Management,CPSHQ160423,"1,407.10",
Crown Prosecution Service ,20/04/23,UK National rail travel,PF HR Systems and Information,Clarity Travel Management,CPSHQ160423,632.90,
Crown Prosecution Service ,20/04/23,UK National rail travel,CFO Strategic Financial Planning,Clarity Travel Management,CPSHQ160423,98.30,
Crown Prosecution Service ,20/04/23,UK National rail travel,DID DTS Change,Clarity Travel Management,CPSHQ160423,"1,493.90",
Crown Prosecution Service ,20/04/23,UK National rail travel,Compliance and Assurance,Clarity Travel Management,CPSHQ160423,"1,990.20",
Crown Prosecution Service ,20/04/23,UK National rail travel,Private Office,Clarity Travel Management,CPSHQ160423,568.00,
Crown Prosecution Service ,20/04/23,UK National rail travel,DID Security and Information,Clarity Travel Management,CPSHQ160423,"1,572.20",
Crown Prosecution Service ,20/04/23,UK National rail travel,CFO Commercial,Clarity Travel Management,CPSHQ160423,724.90,
Crown Prosecution Service ,20/04/23,UK National rail travel,CFO Estates,Clarity Travel Management,CPSHQ160423,287.40,
Crown Prosecution Service ,20/04/23,UK National rail travel,PF HR Operations,Clarity Travel Management,CPSHQ160423,700.70,
Crown Prosecution Service ,20/04/23,UK National rail travel,Court Business Unit,Clarity Travel Management,CPSHQ160423,604.80,
Crown Prosecution Service ,20/04/23,UK National rail travel,DID Central Leadership Team,Clarity Travel Management,CPSHQ160423,132.70,
Crown Prosecution Service ,20/04/23,UK National rail travel,Permanent Transfer Costs,Clarity Travel Management,CPSHQ160423,293.70,
Crown Prosecution Service ,20/04/23,UK National rail travel,PF Analytics and Workforce Plan,Clarity Travel Management,CPSHQ160423,403.65,
Crown Prosecution Service ,20/04/23,UK National rail travel,Director of Legal Services,Clarity Travel Management,CPSHQ160423,197.30,
Crown Prosecution Service ,20/04/23,UK National rail travel,Central Operational Training,Clarity Travel Management,CPSHQ160423,730.00,
Crown Prosecution Service ,20/04/23,UK Air travel,DID Security and Information,Clarity Travel Management,CPSHQ160423,7.50,
Crown Prosecution Service ,20/04/23,UK National rail travel,PF HR Business Partnering,Clarity Travel Management,CPSHQ160423,981.80,
Crown Prosecution Service ,20/04/23,UK National rail travel,DTUS,Clarity Travel Management,CPSHQ160423,31.90,
Crown Prosecution Service ,20/04/23,UK National rail travel,DID DTS Technology,Clarity Travel Management,CPSHQ160423,953.20,
Crown Prosecution Service ,20/04/23,UK National rail travel,Chief Finance Officer,Clarity Travel Management,CPSHQ160423,505.60,
Crown Prosecution Service ,20/04/23,UK Hotels,PF People and Business Change,Clarity Travel Management,CPSHQ160423,697.57,Y
Crown Prosecution Service ,20/04/23,Crown Court Graduated Fee Scheme,West Midlands Complex Casework Unit,2 Harcourt Buildings,JD/117859,"26,394.60",Y
Crown Prosecution Service ,21/04/23,Recoverable VAT control,Balance Sheet,Trustmarque Solutions Ltd,2361475,"9,732.40",Y
Crown Prosecution Service ,21/04/23,IT non capital software licences,Legal Reference and ICT Licenses,Trustmarque Solutions Ltd,2361475,"48,662.01",
Crown Prosecution Service ,21/04/23,Recoverable VAT control,Balance Sheet,Oracle Corporation UK Ltd,460080122,"4,909.44",Y
Crown Prosecution Service ,21/04/23,IT non capital software licences,Legal Reference and ICT Licenses,Oracle Corporation UK Ltd,460080122,"24,547.18",
Crown Prosecution Service ,21/04/23,Other Staff Costs,CFO Financial Reporting,Reward Gateway (UK) Ltd,UK085063SI,"30,000.00",
Crown Prosecution Service ,24/04/23,Crown Court Graduated Fee Scheme,RWD Midlands Wales Unit,5 SAH Services Ltd,164675-3/AE,"30,228.18",Y
Crown Prosecution Service ,24/04/23,Crown Court Graduated Fee Scheme,RWD North Unit,Red Lion Chambers (18 RLC),165064GHJmainfees,"55,485.90",Y
Crown Prosecution Service ,24/04/23,Crown Court Graduated Fee Scheme,RWD North Unit,Red Lion Chambers (18 RLC),165064MBSmainfees,"29,828.40",Y
Crown Prosecution Service ,24/04/23,Crown Court Graduated Fee Scheme,SEOC Team 2,23 Essex Street Chambers,174585-FEN-21/4,"27,415.20",Y
Crown Prosecution Service ,24/04/23,Crown Court Graduated Fee Scheme,London North Complex Casework Unit,23 Essex Street Chambers,201289-LWI-TRIAL,"32,043.00",Y
Crown Prosecution Service ,24/04/23,Crown Court Graduated Fee Scheme,West Midlands Complex Casework Unit,St Philips Chambers,662980 - TWA,"26,744.64",Y
Crown Prosecution Service ,24/04/23,IT non capital software licences,Legal Reference and ICT Licenses,Softcat Plc Marlow,INVUK779942,"75,897.12",Y
Crown Prosecution Service ,25/04/23,Shared services,DID DTS Change,Cabinet Office RM Shared Services,3829593,"27,222.00",
Crown Prosecution Service ,25/04/23,Salaries Temporary Admin,Strategy and Policy,Cabinet Office RM Shared Services,3829602,"27,513.00",
Crown Prosecution Service ,25/04/23,IT services,ICT Network Services,Vodafone Ltd formerly Cable and Wireless Milton Keynes,4028832,"12,495.22",Y
Crown Prosecution Service ,25/04/23,IT services,Estate and FM: Programme,Vodafone Ltd formerly Cable and Wireless Milton Keynes,4028832,"16,933.23",Y
Crown Prosecution Service ,25/04/23,IT services,ICT Network Services,Vodafone Ltd formerly Cable and Wireless Milton Keynes,4030428,"68,298.26",Y
Crown Prosecution Service ,25/04/23,Recoverable VAT control,Balance Sheet,Vodafone Ltd formerly Cable and Wireless Milton Keynes,4030431,"5,621.27",Y
Crown Prosecution Service ,25/04/23,IT services,ICT Network Services,Vodafone Ltd formerly Cable and Wireless Milton Keynes,4030431,"28,106.34",
Crown Prosecution Service ,25/04/23,IT services,ICT Network Services,Vodafone Ltd formerly Cable and Wireless Milton Keynes,4030432,"29,423.38",Y
Crown Prosecution Service ,25/04/23,Data Communications,ICT Network Services,Vodafone Ltd formerly Cable and Wireless Milton Keynes,4030433,"26,323.92",Y
Crown Prosecution Service ,25/04/23,IT services,DTS Programme Project Cost,CGI IT UK Ltd,GB014103508,"35,356.31",Y
Crown Prosecution Service ,25/04/23,IT services,DTS Programme Project Cost,CGI IT UK Ltd,GB014103706,"26,816.64",Y
Crown Prosecution Service ,25/04/23,Recoverable VAT control,Balance Sheet,CGI IT UK Ltd,GB014103927,"19,508.74",Y
Crown Prosecution Service ,25/04/23,IT services,Service Desk Contract,CGI IT UK Ltd,GB014103927,"97,543.70",
Crown Prosecution Service ,26/04/23,Crown Court Graduated Fee Scheme,London North Complex Casework Unit,6 Kings Bench Walk- Chambers of D Fisher & D Perry,103747 DAT1,"53,139.00",Y
Crown Prosecution Service ,26/04/23,Crown Court Graduated Fee Scheme,London South Crown Court Unit,Nine Bedford Row (9 Bedford Row),145406-KC,"31,097.16",Y
Crown Prosecution Service ,26/04/23,Crown Court Graduated Fee Scheme,London North Crown Court Unit,Red Lion Chambers (18 RLC),160485LSE,"38,205.54",Y
Crown Prosecution Service ,26/04/23,Other Staff Costs,Strategy and Policy,Cabinet Office RM Shared Services,3826386,"28,007.00",
Crown Prosecution Service ,26/04/23,Other publicity and media costs,PF Operational HR Costs,Linkedin Dublin,78111564391,"56,595.81",
Crown Prosecution Service ,26/04/23,Recruitment general costs,Court Business Unit,Linkedin Dublin,78111564391,"2,500.00",
Crown Prosecution Service ,26/04/23,Crown Court Graduated Fee Scheme,London North Complex Casework Unit,QEB Hollis Whiteman Chambers,AF 110711,"43,502.10",Y
Crown Prosecution Service ,26/04/23,Crown Court Graduated Fee Scheme,SEOC Team 1,5 King's Bench Walk,CP178324,"33,067.20",Y
Crown Prosecution Service ,26/04/23,Recoverable VAT control,Balance Sheet,CDW Limited London,PSINV03943011,"133,952.00",Y
Crown Prosecution Service ,26/04/23,IT non capital software licences,Legal Reference and ICT Licenses,CDW Limited London,PSINV03943011,"669,760.00",
Crown Prosecution Service ,26/04/23,Conference Organisation,DID Central Leadership Team,Calder Communications Ltd Leeds,TVS554079/1,"60,468.00",Y
Crown Prosecution Service ,27/04/23,National non domestic rates,Estate and FM: Programme,Government Property Agency London,00000001/24807,"52,528.61",
Crown Prosecution Service ,27/04/23,Lease liability non current lease payments,Balance Sheet,Government Property Agency London,00000001/24807,"106,451.25",
Crown Prosecution Service ,27/04/23,Property management fees,Estate and FM: Programme,Government Property Agency London,00000001/24807,"4,506.00",Y
Crown Prosecution Service ,27/04/23,National non domestic rates,Estate and FM: Programme,Government Property Agency London,00000001/24808,"13,980.29",
Crown Prosecution Service ,27/04/23,Lease liability non current lease payments,Balance Sheet,Government Property Agency London,00000001/24808,"23,429.25",
Crown Prosecution Service ,27/04/23,Landlord service charge,Estate and FM: Programme,Government Property Agency London,00000001/24808,"1,416.04",
Crown Prosecution Service ,27/04/23,Property management fees,Estate and FM: Programme,Government Property Agency London,00000001/24808,"10,418.75",Y
Crown Prosecution Service ,27/04/23,Landlord service charge,Estate and FM: Programme,Government Property Agency London,00000001/24811,"25,777.03",
Crown Prosecution Service ,27/04/23,National non domestic rates,Estate and FM: Programme,Government Property Agency London,00000001/24811,"15,744.00",
Crown Prosecution Service ,27/04/23,Property management fees,Estate and FM: Programme,Government Property Agency London,00000001/24811,"8,252.17",Y
Crown Prosecution Service ,27/04/23,Short term leases from 2 to 12 months: Property,Estate and FM: Programme,Government Property Agency London,00000001/24811,"48,123.00",
Crown Prosecution Service ,27/04/23,National non domestic rates,Estate and FM: Programme,Government Property Agency London,00000001/24815,"9,261.01",
Crown Prosecution Service ,27/04/23,Property management fees,Estate and FM: Programme,Government Property Agency London,00000001/24815,"7,088.80",Y
Crown Prosecution Service ,27/04/23,Lease liability non current lease payments,Balance Sheet,Government Property Agency London,00000001/24815,"32,778.00",
Crown Prosecution Service ,27/04/23,Landlord service charge,Estate and FM: Programme,Government Property Agency London,00000001/24815,"28,794.77",
Crown Prosecution Service ,27/04/23,Lease liability non current lease payments,Balance Sheet,Government Property Agency London,00000001/24816,"69,372.10",
Crown Prosecution Service ,27/04/23,National non domestic rates,Estate and FM: Programme,Government Property Agency London,00000001/24816,"23,501.75",
Crown Prosecution Service ,27/04/23,Landlord service charge,Estate and FM: Programme,Government Property Agency London,00000001/24816,"4,959.78",
Crown Prosecution Service ,27/04/23,Property management fees,Estate and FM: Programme,Government Property Agency London,00000001/24816,"7,145.27",Y
Crown Prosecution Service ,27/04/23,Accommodation rental costs (non-IFRS16),Estate and FM: Programme,Government Property Agency London,00000001/24822,"25,500.00",
Crown Prosecution Service ,27/04/23,Property management fees,Estate and FM: Programme,Government Property Agency London,00000001/24822,628.75,Y
Crown Prosecution Service ,27/04/23,Lease liability non current lease payments,Balance Sheet,Government Property Agency London,00000001/24824,"156,900.00",
Crown Prosecution Service ,27/04/23,National non domestic rates,Estate and FM: Programme,Government Property Agency London,00000001/24824,"51,221.25",
Crown Prosecution Service ,27/04/23,Landlord service charge,Estate and FM: Programme,Government Property Agency London,00000001/24824,"16,152.99",
Crown Prosecution Service ,27/04/23,Property management fees,Estate and FM: Programme,Government Property Agency London,00000001/24824,"15,642.88",Y
Crown Prosecution Service ,27/04/23,Landlord service charge,Estate and FM: Programme,Government Property Agency London,00000001/24826,"94,851.95",
Crown Prosecution Service ,27/04/23,Lease liability non current lease payments,Balance Sheet,Government Property Agency London,00000001/24826,"244,327.50",
Crown Prosecution Service ,27/04/23,National non domestic rates,Estate and FM: Programme,Government Property Agency London,00000001/24826,"81,403.05",
Crown Prosecution Service ,27/04/23,Property management fees,Estate and FM: Programme,Government Property Agency London,00000001/24826,"15,375.55",Y
Crown Prosecution Service ,27/04/23,National non domestic rates,Estate and FM: Programme,Government Property Agency London,00000001/25196,"14,592.00",
Crown Prosecution Service ,27/04/23,Landlord service charge,Estate and FM: Programme,Government Property Agency London,00000001/25196,"17,804.32",
Crown Prosecution Service ,27/04/23,Property management fees,Estate and FM: Programme,Government Property Agency London,00000001/25196,"7,235.63",Y
Crown Prosecution Service ,27/04/23,Lease liability non current lease payments,Balance Sheet,Government Property Agency London,00000001/25196,"35,100.00",
Crown Prosecution Service ,27/04/23,National non domestic rates,Estate and FM: Programme,Government Property Agency London,00000001/25199,"4,167.44",
Crown Prosecution Service ,27/04/23,Landlord service charge,Estate and FM: Programme,Government Property Agency London,00000001/25199,"3,844.68",
Crown Prosecution Service ,27/04/23,Lease liability non current lease payments,Balance Sheet,Government Property Agency London,00000001/25199,"11,687.50",
Crown Prosecution Service ,27/04/23,Property management fees,Estate and FM: Programme,Government Property Agency London,00000001/25199,"6,249.19",Y
Crown Prosecution Service ,27/04/23,Landlord service charge,Estate and FM: Programme,Government Property Agency London,00000001/25202,"3,116.60",
Crown Prosecution Service ,27/04/23,Property management fees,Estate and FM: Programme,Government Property Agency London,00000001/25202,"12,476.51",Y
Crown Prosecution Service ,27/04/23,National non domestic rates,Estate and FM: Programme,Government Property Agency London,00000001/25202,"27,776.00",
Crown Prosecution Service ,27/04/23,Lease liability non current lease payments,Balance Sheet,Government Property Agency London,00000001/25202,"87,000.00",
Crown Prosecution Service ,27/04/23,Landlord service charge,Estate and FM: Programme,Government Property Agency London,00000001/25203,"11,351.25",
Crown Prosecution Service ,27/04/23,National non domestic rates,Estate and FM: Programme,Government Property Agency London,00000001/25203,"18,688.00",
Crown Prosecution Service ,27/04/23,Lease liability non current lease payments,Balance Sheet,Government Property Agency London,00000001/25203,"47,000.00",
Crown Prosecution Service ,27/04/23,Property management fees,Estate and FM: Programme,Government Property Agency London,00000001/25203,"9,291.31",Y
Crown Prosecution Service ,27/04/23,National non domestic rates,Estate and FM: Programme,Government Property Agency London,00000001/25208,"65,651.94",
Crown Prosecution Service ,27/04/23,Landlord service charge,Estate and FM: Programme,Government Property Agency London,00000001/25208,"96,690.80",
Crown Prosecution Service ,27/04/23,Short term leases from 2 to 12 months: Property,Estate and FM: Programme,Government Property Agency London,00000001/25208,"210,288.00",
Crown Prosecution Service ,27/04/23,Property management fees,Estate and FM: Programme,Government Property Agency London,00000001/25208,"16,104.84",Y
Crown Prosecution Service ,27/04/23,National non domestic rates,Estate and FM: Programme,Government Property Agency London,00000001/25209,"3,493.00",
Crown Prosecution Service ,27/04/23,Lease liability non current lease payments,Balance Sheet,Government Property Agency London,00000001/25209,"8,750.00",
Crown Prosecution Service ,27/04/23,Landlord service charge,Estate and FM: Programme,Government Property Agency London,00000001/25209,"7,512.08",
Crown Prosecution Service ,27/04/23,Property management fees,Estate and FM: Programme,Government Property Agency London,00000001/25209,"5,262.14",Y
Crown Prosecution Service ,27/04/23,Lease liability non current lease payments,Balance Sheet,Government Property Agency London,00000001/25214,"59,760.60",
Crown Prosecution Service ,27/04/23,National non domestic rates,Estate and FM: Programme,Government Property Agency London,00000001/25214,"24,819.54",
Crown Prosecution Service ,27/04/23,Property management fees,Estate and FM: Programme,Government Property Agency London,00000001/25214,"4,506.00",Y
Crown Prosecution Service ,27/04/23,Landlord service charge,Estate and FM: Programme,Government Property Agency London,00000001/25214,"36,053.59",Y
Crown Prosecution Service ,27/04/23,National non domestic rates,Estate and FM: Programme,Government Property Agency London,00000001/25215,"5,760.08",
Crown Prosecution Service ,27/04/23,Lease liability non current lease payments,Balance Sheet,Government Property Agency London,00000001/25215,"17,383.30",
Crown Prosecution Service ,27/04/23,Property management fees,Estate and FM: Programme,Government Property Agency London,00000001/25215,"7,741.49",Y
Crown Prosecution Service ,27/04/23,Landlord service charge,Estate and FM: Programme,Government Property Agency London,00000001/25216,"38,864.85",
Crown Prosecution Service ,27/04/23,Lease liability non current lease payments,Balance Sheet,Government Property Agency London,00000001/25216,"89,856.60",
Crown Prosecution Service ,27/04/23,Property management fees,Estate and FM: Programme,Government Property Agency London,00000001/25216,"8,203.24",Y
Crown Prosecution Service ,27/04/23,National non domestic rates,Estate and FM: Programme,Government Property Agency London,00000001/25216,"35,503.75",
Crown Prosecution Service ,27/04/23,Lease liability non current lease payments,Balance Sheet,Government Property Agency London,00000001/25220,"6,444.25",
Crown Prosecution Service ,27/04/23,National non domestic rates,Estate and FM: Administration,Government Property Agency London,00000001/25220,"3,324.59",
Crown Prosecution Service ,27/04/23,Property management fees,Estate and FM: Administration,Government Property Agency London,00000001/25220,"27,783.00",Y
Crown Prosecution Service ,27/04/23,Landlord service charge,Estate and FM: Programme,Government Property Agency London,00000001/25221,"40,592.29",Y
Crown Prosecution Service ,27/04/23,Lease liability non current lease payments,Balance Sheet,Government Property Agency London,00000001/25221,"17,465.81",
Crown Prosecution Service ,27/04/23,Lease liability non current lease payments,Balance Sheet,Government Property Agency London,00000001/25225,"26,746.38",
Crown Prosecution Service ,27/04/23,Property management fees,Estate and FM: Programme,Government Property Agency London,00000001/25225,"4,506.00",Y
Crown Prosecution Service ,27/04/23,Crown Court Graduated Fee Scheme,Counter Terrorism Unit: Internal Funding,Red Lion Chambers (18 RLC),162700EGR2ndtrial,"26,625.00",Y
Crown Prosecution Service ,27/04/23,Advice/PreSending Very High Cost Cases Full Scheme,SEOC Team 1,Furnival Chambers,171337/DDR/,"37,548.00",Y
Crown Prosecution Service ,27/04/23,Crown Court Very High Cost Cases Full Scheme,SEOC Team 1,Foundry Chambers (9-12 Bell Yard),199456/MC,"36,126.00",Y
Crown Prosecution Service ,27/04/23,UK National rail travel,Compliance and Assurance,Clarity Travel Management,CPSHQ230423,352.10,
Crown Prosecution Service ,27/04/23,UK National rail travel,PF People and Business Change,Clarity Travel Management,CPSHQ230423,"1,746.75",
Crown Prosecution Service ,27/04/23,UK National rail travel,Director of Legal Services,Clarity Travel Management,CPSHQ230423,865.20,
Crown Prosecution Service ,27/04/23,UK National rail travel,Strategy and Policy,Clarity Travel Management,CPSHQ230423,"2,570.00",
Crown Prosecution Service ,27/04/23,UK National rail travel,CFO Fin System Change and Costings,Clarity Travel Management,CPSHQ230423,554.90,
Crown Prosecution Service ,27/04/23,UK National rail travel,Operational Change,Clarity Travel Management,CPSHQ230423,"1,869.70",
Crown Prosecution Service ,27/04/23,UK National rail travel,PF Analytics and Workforce Plan,Clarity Travel Management,CPSHQ230423,46.90,
Crown Prosecution Service ,27/04/23,UK National rail travel,Private Office,Clarity Travel Management,CPSHQ230423,912.40,
Crown Prosecution Service ,27/04/23,UK National rail travel,Press Office,Clarity Travel Management,CPSHQ230423,277.60,
Crown Prosecution Service ,27/04/23,UK National rail travel,DID Central Leadership Team,Clarity Travel Management,CPSHQ230423,"1,181.00",
Crown Prosecution Service ,27/04/23,UK National rail travel,Operational Business Support,Clarity Travel Management,CPSHQ230423,656.80,
Crown Prosecution Service ,27/04/23,UK National rail travel,Chief Finance Officer,Clarity Travel Management,CPSHQ230423,271.40,
Crown Prosecution Service ,27/04/23,UK National rail travel,DID DTS Technology,Clarity Travel Management,CPSHQ230423,"1,279.50",
Crown Prosecution Service ,27/04/23,UK National rail travel,PF HR Operations,Clarity Travel Management,CPSHQ230423,133.10,
Crown Prosecution Service ,27/04/23,UK National rail travel,DID DTS Change,Clarity Travel Management,CPSHQ230423,"1,882.70",
Crown Prosecution Service ,27/04/23,UK National rail travel,PF HR Business Partnering,Clarity Travel Management,CPSHQ230423,"2,071.60",
Crown Prosecution Service ,27/04/23,UK National rail travel,PF HR Operations,Clarity Travel Management,CPSHQ230423,914.20,
Crown Prosecution Service ,27/04/23,UK National rail travel,Corporate Communication,Clarity Travel Management,CPSHQ230423,489.30,
Crown Prosecution Service ,27/04/23,UK National rail travel,Operational Performance,Clarity Travel Management,CPSHQ230423,"1,327.00",
Crown Prosecution Service ,27/04/23,UK National rail travel,PF HR Systems and Information,Clarity Travel Management,CPSHQ230423,136.60,
Crown Prosecution Service ,27/04/23,UK National rail travel,DID Operational Process,Clarity Travel Management,CPSHQ230423,354.90,
Crown Prosecution Service ,27/04/23,UK National rail travel,CFO Commercial,Clarity Travel Management,CPSHQ230423,122.20,
Crown Prosecution Service ,27/04/23,UK National rail travel,PF Resourcing,Clarity Travel Management,CPSHQ230423,608.40,
Crown Prosecution Service ,27/04/23,UK National rail travel,DTUS,Clarity Travel Management,CPSHQ230423,51.40,
Crown Prosecution Service ,27/04/23,UK Hotels,PF Learning and Development General,Clarity Travel Management,CPSHQ230423,298.00,Y
Crown Prosecution Service ,27/04/23,UK Hotels,DID Security and Information,Clarity Travel Management,CPSHQ230423,"1,344.02",Y
Crown Prosecution Service ,27/04/23,UK Hotels,Strategy and Policy,Clarity Travel Management,CPSHQ230423,480.00,Y
Crown Prosecution Service ,27/04/23,UK Hotels,Central Legal Training Team,Clarity Travel Management,CPSHQ230423,566.75,Y
Crown Prosecution Service ,27/04/23,UK Hotels,CFO Fin System Change and Costings,Clarity Travel Management,CPSHQ230423,90.00,Y
Crown Prosecution Service ,27/04/23,UK Hotels,Corporate Communication,Clarity Travel Management,CPSHQ230423,168.00,Y
Crown Prosecution Service ,27/04/23,UK Hotels,DID Operational Process,Clarity Travel Management,CPSHQ230423,616.10,Y
Crown Prosecution Service ,27/04/23,UK Hotels,CFO Commercial,Clarity Travel Management,CPSHQ230423,446.00,Y
Crown Prosecution Service ,27/04/23,UK Hotels,Operational Business Support,Clarity Travel Management,CPSHQ230423,573.80,Y
Crown Prosecution Service ,27/04/23,UK Hotels,CFO Estates,Clarity Travel Management,CPSHQ230423,77.00,Y
Crown Prosecution Service ,27/04/23,UK Hotels,Permanent Transfer Costs,Clarity Travel Management,CPSHQ230423,806.96,Y
Crown Prosecution Service ,27/04/23,UK Hotels,Operational Change,Clarity Travel Management,CPSHQ230423,5.16,Y
Crown Prosecution Service ,27/04/23,UK Hotels,Compliance and Assurance,Clarity Travel Management,CPSHQ230423,"1,550.84",Y
Crown Prosecution Service ,27/04/23,UK Hotels,CFO Finance Operations,Clarity Travel Management,CPSHQ230423,151.00,Y
Crown Prosecution Service ,27/04/23,UK Hotels,Central Operational Training,Clarity Travel Management,CPSHQ230423,309.00,Y
Crown Prosecution Service ,27/04/23,UK Hotels,PF HR Systems and Information,Clarity Travel Management,CPSHQ230423,134.00,Y
Crown Prosecution Service ,27/04/23,UK Hotels,DID Central Leadership Team,Clarity Travel Management,CPSHQ230423,702.80,Y
Crown Prosecution Service ,27/04/23,UK Hotels,PF People and Business Change,Clarity Travel Management,CPSHQ230423,592.08,Y
Crown Prosecution Service ,27/04/23,UK Hotels,PF Resourcing,Clarity Travel Management,CPSHQ230423,596.74,Y
Crown Prosecution Service ,27/04/23,UK Hotels,DID DTS Technology,Clarity Travel Management,CPSHQ230423,463.74,Y
Crown Prosecution Service ,27/04/23,UK Hotels,Director of Legal Services,Clarity Travel Management,CPSHQ230423,297.00,Y
Crown Prosecution Service ,27/04/23,UK Hotels,DID DTS Change,Clarity Travel Management,CPSHQ230423,88.00,Y
Crown Prosecution Service ,27/04/23,Overseas Air travel,DID DTS Technology,Clarity Travel Management,CPSHQ230423,"1,152.29",
Crown Prosecution Service ,27/04/23,UK National rail travel,CFO Strategic Financial Planning,Clarity Travel Management,CPSHQ230423,194.75,
Crown Prosecution Service ,27/04/23,UK National rail travel,Permanent Transfer Costs,Clarity Travel Management,CPSHQ230423,410.30,
Crown Prosecution Service ,27/04/23,UK National rail travel,PF Learning and Development General,Clarity Travel Management,CPSHQ230423,"1,401.70",
Crown Prosecution Service ,27/04/23,UK National rail travel,CFO Estates,Clarity Travel Management,CPSHQ230423,412.00,
Crown Prosecution Service ,27/04/23,UK National rail travel,Court Business Unit,Clarity Travel Management,CPSHQ230423,"1,379.20",
Crown Prosecution Service ,27/04/23,UK National rail travel,DID Security and Information,Clarity Travel Management,CPSHQ230423,"1,849.60",
Crown Prosecution Service ,27/04/23,UK National rail travel,Central Operational Training,Clarity Travel Management,CPSHQ230423,276.90,
Crown Prosecution Service ,27/04/23,IT services,CFO Commercial,Jaggaer London,INVUK2369,"26,431.67",Y
Crown Prosecution Service ,27/04/23,Crown Court Graduated Fee Scheme,West Midlands Complex Casework Unit,St Ives Chambers,som-212827,"42,496.80",Y
Crown Prosecution Service ,28/04/23,Crown Court Graduated Fee Scheme,SEOC Team 1,Lincoln House Chambers,242506 AL,"30,931.56",Y
Crown Prosecution Service ,28/04/23,Recoverable VAT control,Balance Sheet,Accenture (UK) Ltd London,3003605053,"5,040.00",Y
Crown Prosecution Service ,28/04/23,IT services,DTS Programme Project Cost,Accenture (UK) Ltd London,3003605053,"25,200.00",
Crown Prosecution Service ,28/04/23,Crown Court Graduated Fee Scheme,West Midlands Crown Court Unit,St Philips Chambers,691977 KHKC,"27,797.40",Y
Crown Prosecution Service ,28/04/23,Crown Court Graduated Fee Scheme,London North Complex Casework Unit,5 King's Bench Walk,AOKC176232,"35,370.84",Y
Crown Prosecution Service ,28/04/23,Crown Court Graduated Fee Scheme,London North Complex Casework Unit,5 King's Bench Walk,BHO176598,"25,000.80",Y
Crown Prosecution Service ,28/04/23,IT services,DTS Programme Project Cost,Green Lemon Company Ltd Haywards Heath,GLC_Invoice_2023-03_466,"39,600.00",Y
Crown Prosecution Service ,28/04/23,IT services,End User Computing Contract,ACS Systems UK Limited Northampton,INV430070,"31,732.86",Y
Crown Prosecution Service ,28/04/23,Crown Court Graduated Fee Scheme,London North Complex Casework Unit,QEB Hollis Whiteman Chambers,WBKC 112053,"47,637.60",Y
